{"text_format":"1","workbook":"xlsx","n_sheets":6,"sheets":["Ark1","Ark2","Ark3","Ark4","Ark5","Ark6"],"not_rendered":{"charts":0,"images":0,"macros":1,"external_links":0,"defined_names":0,"comments":0,"pivot_tables":0},"unopened":[],"bounds":{"document_bytes":16777216,"sheet_cells":100000,"rows_first":2000,"rows_last":500,"rows_between":2000,"halvings":0,"cell_chars":16384,"cell_head_chars":4096},"cells_cut":0,"cells_raw":0,"read":"whole","date_system":"1900"}

{"sheet":"Ark1","index":0,"n_rows":123,"n_cols":79,"rows_kept":123,"cut":false,"hidden":false,"merged":[[29,16,29,30],[16,0,16,13],[9,0,9,13],[24,16,24,30],[25,16,25,30],[26,16,26,30],[27,16,27,30],[28,16,28,30]]}
[]
["Nøgle til de danske Melangyna-HANNER. (Diptera: Syrphidae)",null,null,null,null,null,null,null,null,null,null,null,null,null,null,null,null,null,null,null,null,null,null,null,null,null,null,null,null,null,null,null,null,null,null,null,null,null,null,null,null," ",null,null," "]
[]
[null,null,null,null,"HANNER",null,null,null,null,null,null,null,null,null,null,null,null,null,null,{"$f":"IF(AQ9=1,VLOOKUP(AQ8,BK11:BL23,2,FALSE),\"     Melangyna sp.\")","v":"Melangyna pavlovskyi"}]
[]
["Ansigt helt sort ?",null,null,null,null,null,null,null,null,null,null,null,null,null,null,null,null,null,null,{"$f":"IF(AQ9=1,VLOOKUP(AQ8,BA26:BB43,2,FALSE),\"          Svirreflue\")","v":"."},null,null,null,null,null,null,null,null,null,null,null,null,null,null,null," ","Afkrydsede felter",null,null,null,null,null,{"$f":"SUM(AR6+AT6+AV6+AY6+BA6+BC6+BE6+BG6+BI6)","v":2},{"$f":"IF(AS6=0,0,1)","v":0},{"$f":"SUM(AR7:AS7)","v":0},{"$f":"IF(AU6=0,0,1)","v":0},{"$f":"SUM(AT7:AU7)","v":0},{"$f":"IF(AW6=0,0,1)","v":1},{"$f":"SUM(AV7:AX7)","v":1},null,{"$f":"IF(AZ6=0,0,1)","v":1},{"$f":"SUM(AY7:AZ7)","v":1},{"$f":"IF(BB6=0,0,1)","v":0},{"$f":"SUM(BA7:BB7)","v":0},{"$f":"IF(BD6=0,0,1)","v":0},{"$f":"SUM(BC7:BD7)","v":0},{"$f":"IF(BF6=0,0,1)","v":0},{"$f":"SUM(BE7:BF7)","v":0},{"$f":"IF(BH6=0,0,1)","v":0},{"$f":"SUM(BG7:BH7)","v":0},{"$f":"IF(BJ6=0,0,1)","v":0},{"$f":"SUM(BI7:BJ7)","v":0},null,null,null,null,null,null,null,null,null,null,null,null,null,null,{"$f":"IF(CA6,\"x\",\" \")","v":" "},null,0]
["Ansigt mere eller mindre gult eller brunligt ?",null,null,null,null,null,null,null,null,null,null,null,null,null,null,null,null,{"$f":"IF(AQ9=1,\"      Fluen er nu bestemt.  Se ovenfor. \",IF(AQ6=0,\" \",IF(AQ6>AQ8,\" \",\"Se de mulige arter i oversigten nedenfor.\")))","v":"      Fluen er nu bestemt.  Se ovenfor. "},null,null,null,null,null,null,null,null,null,null,null,null,null,null,null,null,null,null,null,null,null,null,null,null,null,{"$f":"IF(BY6=\" \",0,1)","v":0},{"$f":"IF(BY7=\" \",0,1)","v":0},{"$f":"IF(BY9=\" \",0,1)","v":0},{"$f":"IF(BY10=\" \",0,1)","v":0},{"$f":"IF(BY12=\" \",0,1)","v":0},{"$f":"IF(BY13=\" \",0,1)","v":1},{"$f":"IF(BY14=\" \",0,1)","v":0},{"$f":"IF(BY16=\" \",0,1)","v":0},{"$f":"IF(BY17=\" \",0,1)","v":1},{"$f":"IF(BY19=\" \",0,1)","v":0},{"$f":"IF(BY20=\" \",0,1)","v":0},{"$f":"IF(BY22=\" \",0,1)","v":0},{"$f":"IF(BY23=\" \",0,1)","v":0},{"$f":"IF(BY25=\" \",0,1)","v":0},{"$f":"IF(BY26=\" \",0,1)","v":0},{"$f":"IF(BY28=\" \",0,1)","v":0},{"$f":"IF(BY29=\" \",0,1)","v":0},{"$f":"IF(BY30=\" \",0,1)","v":0},{"$f":"IF(BY31=\" \",0,1)","v":0},null,null,null,null,null,null,null,null,null,null,null,null,null,null,{"$f":"IF(CA7,\"x\",\" \")","v":" "},null,false]
[null,null,null,null,null,null,null,null,null,null,null,null,null,null,null,null,{"$f":"IF(AQ6>AQ8,\"Afkrydsede kendetegn passer ikke med nøglens.\",\" \")","v":" "},null,null,null,null,null,null,null,null,null,null,null,null,null,null,null,null," ",null,null,null,null,null,"Maks.",null,null,{"$f":"MAX(AQ11:AQ17)","v":2},null,null,null,null,null,null,null,null,null,null,null,null,null,null,null,null,null,null,null,null,null,null,null,null,null,null,null,null,null,null,null,null,null," "]
["Øjne mere eller mindre behårede ?",null,null,null,null,null,null,null,null,null,null,null,null,null,null,null,{"$f":"IF(AQ6>AQ8,\"Det gør en bestemmelse tvivlsom.    Prøv igen !\",\" \")","v":" "},null,null,null,null,null,null,null,null,null,null,null,null,null,null,null,null,null,null,null,null,null,"Antal Maks.",null,null,null,{"$f":"COUNTIF(AQ11:AQ23,AQ8)","v":1},null,null,null,null,null,null,null,null,null,null,null,null,null,null,null,null,null," ",null,null,null,null,null,null,null,null,null,null,null,null,null,null,null,{"$f":"IF(CA9,\"x\",\" \")","v":" "},null,0]
["Ingen øjenbehåring synlig ?",null,null,null,null,null,null,null,null,null,null,null,null,null,null,null,null,null,null,null,null,null,null,null,null,null,null,null,null,null,null,null,null,null,null,null,null,null,null,null,null,null,"sum","ansigt",null,"øjne",null,"sct",null,null,"bagkrop",null,"pl",null,"runde",null,null,null,"overside",null,null,null,"sum",null,null,null,null,null,null,null,null,null,null,null,null,null,{"$f":"IF(CA10,\"x\",\" \")","v":" "},null,0]
[null,null,null,null,null,null,null,null,null,null,null,null,null,null,null,null," ",null,1,{"$f":"IF(AQ11=AQ8,AI11,\" \")","v":" "},null,null,null,null,null,null,null,null,null,null," ",null,null,1,"barbifrons",null,null,null,null,null,null,null,{"$f":"SUM(AR11:BJ11)","v":1},{"$f":"IF(BY6=\"x\",1,\" \")","v":" "},null,null,{"$f":"IF($BY$10=\"x\",1,\" \")","v":" "},null,null,{"$f":"IF($BY$14=\"x\",1,\" \")","v":" "},null,{"$f":"IF($BY$17=\"x\",1,\" \")","v":1},{"$f":"IF($BY$19=\"x\",1,\" \")","v":" "},{"$f":"IF($BY$20=\"x\",1,\" \")","v":" "},{"$f":"IF($BY$22=\"x\",1,\" \")","v":" "},null,{"$f":"IF($BY$25=\"x\",1,\" \")","v":" "},null,null,{"$f":"IF($BY$29=\"x\",1,\" \")","v":" "},null,{"$f":"IF($BY$31=\"x\",1,\" \")","v":" "},{"$f":"SUM(AR11:BJ11)","v":1},"Melangyna barbifrons",null,null,null,null,null,null,null,null,null,null,null,null," "]
["Scutellum gulligt med sort plet i forhjørnerne ?",null,null,null,null,null,null,null,null,null,null,null,null,null,null,null,null,null,2,{"$f":"IF(AQ12=AQ8,AI12,\" \")","v":" "},null,null,null,null,null,null,null,null,null,null,null,null,null,2,"compositarum",null,null,null,null,null,null,null,{"$f":"SUM(AR12:BJ12)","v":0}," ",{"$f":"IF(BY7=\"x\",1,\" \")","v":" "},{"$f":"IF($BY$9=\"x\",1,\"\")","v":""},{"$f":"IF($BY$10=\"x\",1,\" \")","v":" "},{"$f":"IF(BY12=\"x\",1,\" \")","v":" "},null,null,{"$f":"IF(BY16=\"x\",1,\" \")","v":" "},null,{"$f":"IF($BY$19=\"x\",1,\" \")","v":" "}," ",null,{"$f":"IF($BY$23=\"x\",1,\" \")","v":" "},null,{"$f":"IF($BY$26=\"x\",1,\" \")","v":" "},{"$f":"IF($BY$28=\"x\",1,\" \")","v":" "},null,{"$f":"IF($BY$30=\"x\",1,\" \")","v":" "},null,{"$f":"SUM(AR12:BI12)","v":0},"Melangyna compositorum",null,null,null,null,null,null,null,null,null,null,null,null,{"$f":"IF(CA12,\"x\",\" \")","v":" "},null,0]
["Pletten kileformet forlænget på sidekanten ?",null,null,null,null,null,null,null,null,null,null,null,null,null,null,null,null,null,3,{"$f":"IF(AQ13=AQ8,AI13,\" \")","v":" "},null,null,null,null,null,null,null,null,null,null,null,null,null,3,"lasiophthalma",null,null,null,null,null,null,null,{"$f":"SUM(AR13:BJ13)","v":1}," ",{"$f":"IF(BY7=\"x\",1,\" \")","v":" "},{"$f":"IF($BY$9=\"x\",1,\"\")","v":""}," ",null,{"$f":"IF($BY$13=\"x\",1,\" \")","v":1},null,{"$f":"IF(BY16=\"x\",1,\" \")","v":" "},null,{"$f":"IF($BY$19=\"x\",1,\" \")","v":" "},null,null," ",null,{"$f":"IF($BY$26=\"x\",1,\" \")","v":" "}," ",null,null," ",{"$f":"SUM(AR13:BI13)","v":1},"Melangyna lasophthalma",null,null,null,null,null,null,null,null,null,null,null,null,{"$f":"IF(CA13,\"x\",\" \")","v":"x"},null,true]
["Scutellum sort, måske sortbrunt midt på?",null,null,null,null,null,null,null,null,null,null,null,null,null,null,null,null,null,4,{"$f":"IF(AQ14=AQ8,AI14,\" \")","v":" "},null,null,null,null,null,null,null,null,null,null,null,null,null,4,"lucifera ",null,null,null,null,null,null,null,{"$f":"SUM(AR14:BJ14)","v":1},null,{"$f":"IF(BY7=\"x\",1,\" \")","v":" "},""," ",null,{"$f":"IF($BY$13=\"x\",1,\" \")","v":1},null,{"$f":"IF(BY16=\"x\",1,\" \")","v":" "},null," ",{"$f":"IF($BY$20=\"x\",1,\" \")","v":" "},{"$f":"IF($BY$22=\"x\",1,\" \")","v":" "},null,{"$f":"IF($BY$25=\"x\",1,\" \")","v":" "},null,{"$f":"IF($BY$28=\"x\",1,\" \")","v":" "},null,null," ",{"$f":"SUM(AR14:BJ14)","v":1}," Melangyna lucifera",null,null,null,null,null,null,null,null,null,null,null,null,{"$f":"IF(CA14,\"x\",\" \")","v":" "},null,0]
[null,null,null,null,null,null,null,null,null,null,null,null,null,null,null,null,null,null,5,{"$f":"IF(AQ15=AQ8,AI15,\" \")","v":"pavlovskyi"},null,null,null,null,null,null,null,null,null,null,null,null,null,5,"pavlovskyi",null,null,null,null,null,null,null,2,null,{"$f":"IF(BY7=\"x\",1,\" \")","v":" "},""," "," ",{"$f":"IF($BY$13=\"x\",1,\" \")","v":1},null,{"$f":"IF(BY16=\"x\",1,\" \")","v":" "},{"$f":"IF($BY$17=\"x\",1,\" \")","v":1},{"$f":"IF($BY$19=\"x\",1,\" \")","v":" "},null,{"$f":"IF($BY$22=\"x\",1,\" \")","v":" "},null,null,{"$f":"IF($BY$26=\"x\",1,\" \")","v":" "},{"$f":"IF($BY$28=\"x\",1,\" \")","v":" "},null,null," ",2,"Melangyna pavlovskyi",null,null,null,null,null,null,null,null,null,null,null,null," "]
["Bagkrop med sidepletter på 2., 3. og 4. led ?",null,null,null,null,null,null,null,null,null,null,null,null,null,null,null,null,null,6,{"$f":"IF(AQ16=AQ8,AI16,\" \")","v":" "},null,null,null,null,null,null,null,null,null,null,null,null,null,6,"quadrimaculata",null,null,null,null,null,null,null,1,{"$f":"IF(BY6=\"x\",1,\" \")","v":" "}," ",""," ",null,null,{"$f":"IF($BY$14=\"x\",1,\" \")","v":" "},null,{"$f":"IF($BY$17=\"x\",1,\" \")","v":1}," ",{"$f":"IF($BY$20=\"x\",1,\" \")","v":" "},{"$f":"IF($BY$22=\"x\",1,\" \")","v":" "},null," ",null,{"$f":"IF($BY$28=\"x\",1,\" \")","v":" "},null,null," ",1,"Melangyna quadrimaculata",null,null,null,null,null,null,null,null,null,null,null,null,{"$f":"IF(CA16,\"x\",\" \")","v":" "},null,0]
["Bagkrop kun med sidepletter på 3. og 4. led  ?",null,null,null,null,null,null,null,null,null,null,null,null,null,null,null,null,null,7,{"$f":"IF(AQ17=AQ8,AI17,\" \")","v":" "},null,null,null,null,null,null,null,null,null,null,null,null,null,7,"umbellatarum",null,null,null,null,null,null,null,0,null,{"$f":"IF(BY7=\"x\",1,\" \")","v":" "},null,{"$f":"IF($BY$10=\"x\",1,\" \")","v":" "},{"$f":"IF(BY12=\"x\",1,\" \")","v":" "},null,null,{"$f":"IF(BY16=\"x\",1,\" \")","v":" "},null,{"$f":"IF($BY$19=\"x\",1,\" \")","v":" "}," ",null,{"$f":"IF($BY$23=\"x\",1,\" \")","v":" "},null,{"$f":"IF($BY$26=\"x\",1,\" \")","v":" "},{"$f":"IF($BY$28=\"x\",1,\" \")","v":" "},null,null," ",0,"Melangyna umbellatarum",null,null,null,null,null,null,null,null,null,null,null,null,{"$f":"IF(CA17,\"x\",\" \")","v":"x"},null,true]
[null,null,null,null,null,null,null,null,null,null,null,null,null,null,null,null,null,null,8,null,null,null,null,null,null,null,null,null,null,null,null,null,null,8,".",null,null,null,null,null,null,null,0,null,null,null,null,null,null,null,null,null,null,null,null,null,null,null,null,null,null,null,0,null,null,null,null,null,null,null,null,null,null,null,null,null," "]
["Pletter på 3. - 4. led rektangulære eller ovale?",null,null,null,null,null,null,null,null,null,null,null,null,null,null,null,null,null,9,null,null,null,null,null,null,null,null,null,null,null,null,null,null,9,".",null,null,null,null,null,null,null,{"$f":"SUM(AR19:BJ19)","v":0},null,null,null,null,null," "," "," ",null,null,null,null," ",null,null," ",null,null,null,{"$f":"SUM(AR19:BJ19)","v":0},null,null,null,null,null,null,null,null,null,null,null,null,null,{"$f":"IF(CA19,\"x\",\" \")","v":" "},null,0]
["Pletterne noget tilspidsede indadtil, smalle ?",null,null,null,null,null,null,null,null,null,null,null,null,null,null,null,null,null,10,null,null,null,null,null,null,null,null,null,null,null,null,null,null,10,".",null,null,null,null,null,null,null,0,null,null,null,null,null,null,null,null,null,null,null,null,null,null,null,null,null,null,null,0,null,null,null,null,null,null,null,null,null,null,null,null,null,{"$f":"IF(CA20,\"x\",\" \")","v":" "},null,0]
[null,null,null,null,null,null,null,null,null,null,null,null,null,null,null,null,null,null,11,null,null,null,null,null,null,null,null,null,null,null,null,null,null,11,".",null,null,null,null,null,null,null,{"$f":"SUM(AR21:BJ21)","v":0},null,null,null,null,null,null,null,null,null,null,null,null,null,null,null,null,null,null,null,0,null,null,null,null,null,null,null,null,null,null,null,null,null," "]
["På 2. led ingen eller meget små sidepletter ?",null,null,null,null,null,null,null,null,null,null,null,null,null,null,null,null,null,12,null,null,null,null,null,null,null,null,null,null,null,null,null,null,12,".",null,null,null,null,null,null,null,{"$f":"SUM(AR22:BJ22)","v":0},null,null,null,null,null,null,null,null,null,null,null,null,null,null,null,null,null,null,null,0,null,null,null,null,null,null,null,null,null,null,null,null,null,{"$f":"IF(CA22,\"x\",\" \")","v":" "},null,0]
["Sidepletter på 2. led større, aldrig runde ?",null,null,null,null,null,null,null,null,null,null,null,null,null,null,null,null,null,13,null,null,null,null,null,null,null,null,null,null,null,null,null,null,13,".",null,null,null,null,null,null,null,{"$f":"SUM(AR23:BJ23)","v":0},null,null,null,null,null,null,null,null,null,null,null,null,null,null,null,null,null,null,null,0,null,null,null,null,null,null,null,null,null,null,null,null,null,{"$f":"IF(CA23,\"x\",\" \")","v":" "},null,0]
[null,null,null,null,null,null,null,null,null,null,null,null,null,null,null,null,{"$f":"+CA39","v":5}," Melangyna",null,null,null,{"$f":"VLOOKUP(Q24,AH11:AI23,2)","v":"pavlovskyi"},null,null,null,null,null,null,null,null,null,null,null,null,null,null,null,null,null,null,null,null,null,null,null,null,null,null,null,null,null,null,null,null,null,null,null,null,null,null,null,null,null,null,null,null,null,null,null,null,null,null,null,null,null,null," "]
["Sidepletter mere eller mindre sølvpudrede ?",null,null,null,null,null,null,null,null,null,null,null,null,null,null,null,{"$f":"VLOOKUP(Q24,AH26:AI38,2)","v":"Øjne langt behårede. Pande bestøvet. Ansigt næsten al-"},null,null,null,null,null,null,null,null,null,null,null,null,null,null,null,null,null,null,null,null,null,null,null,null,null,null,null,null,null,null,null,null,null,null,null,null,null,null,null,null,null,null,null,null,null,null,null,null,null,null,null,null,null,null,null,null,null,null,null,{"$f":"IF(CA25,\"x\",\" \")","v":" "},null,0]
["Sidepletter ikke sølvpudrede, måske hvide ? ",null,null,null,null,null,null,null,null,null,null,null,null,null,null,null,{"$f":"VLOOKUP(Q24,AH40:AI52,2)","v":"tid sort. Kroppen langt lyst behåret. Scutellum oftest"},null,null,null,null,null,null,null,null,null,null,null,null,null,null,null,1,1,"Øjne ikke behårede (undersøg nøje). Brystets over-",null,null,null,null,null,null,null,null,null,null,null,null,null,null,null,null,null,{"$f":"SUM(AR11:BJ11)","v":1},"     Mørk Svirreflue",null,null,null,null,null,null,null,null,null,null,null,null,null,null,null,null,null,null,null,null,null,null,{"$f":"IF(CA26,\"x\",\" \")","v":" "},null,0]
[null,null,null,null,null,null,null,null,null,null,null,null,null,null,null,null,{"$f":"VLOOKUP(Q24,AH54:AI66,2)","v":"gult, mørkere midt på. 2. bagkropsled helt sort eller  "},null,null,null,null,null,null,null,null,null,null,null,null,null,null,null,null,2,"Øjne med meget kort næppe synlig behåring. Pande",null,null,null,null,null,null,null,null,null,null,null,null,null,null,null,null,null,{"$f":"SUM(AR12:BI12)","v":0},"     Kurve-Svirreflue",null,null,null,null,null,null,null,null,null,null,null,null,null,null,null,null,null,null,null,null,null,null," "]
["Brystoverside hvidt behåret (se fra siden) ?",null,null,null,null,null,null,null,null,null,null,null,null,null,null,null,{"$f":"VLOOKUP(Q24,AH68:AI80,2)","v":"med meget lille plet. 3. og 4. led med ret små ovale"},null,null,null,null,null,null,null,null,null,null,null,null,null,null,null,null,3,"Øjne kort behårede. Pande bestøvet. Ansigt gult med",null,null,null,null,null,null,null,null,null,null,null,null,null,null,null,null,null,{"$f":"SUM(AR13:BI13)","v":1},"       Håret Svirreflue",null,null,null,null,null,null,null,null,null,null,null,null,null,null,null,null,null,null,null,null,null,null,{"$f":"IF(CA28,\"x\",\" \")","v":" "},null,0]
["Brystoverside mest sorthåret (se fra siden) ?",null,null,null,null,null,null,null,null,null,null,null,null,null,null,null,{"$f":"VLOOKUP(Q24,AH82:AI94,2)","v":"eller rektangulære pletter. Ben delvis gule. 7-8 mm."},null,null,null,null,null,null,null,null,null,null,null,null,null,null,null,null,4,"Øjne behårede. Ansigt meget bredt, gult med sort ",null,null,null,null,null,null,null,null,null,null,null,null,null,null,null,null,null,{"$f":"SUM(AR14:BJ14)","v":1},"    Lysende Svirreflue",null,null,null,null,null,null,null,null,null,null,null,null,null,null,null,null,null,null,null,null,null,null,{"$f":"IF(CA29,\"x\",\" \")","v":" "},null,0]
[null,null,null,null,null,null,null,null,null,null,null,null,null,null,null,null,{"$f":"VLOOKUP(Q24,AH96:AI108,2)","v":"Forårsart,  mar.-maj. Nyere art under udbredelse i "},null,null,null,null,null,null,null,null,null,null,null,null,null,null,null,null,5,"Øjne langt behårede. Pande bestøvet. Ansigt næsten al-",null,null,null,null,null,null,null,null,null,null,null,null,null,null,null,null,null,{"$f":"SUM(AR15:BJ15)","v":2},".",null,null,null,null,null,null,null,null,null,null,null,null,null,null,null,null,null,null,null,null,null,null,{"$f":"IF(CA30,\"x\",\" \")","v":" "},null,0]
["Bryst kraftigtt bestøvet, næppe skinnende ?",null,null,null,null,null,null,null,null,null,null,null,null,null,null,null,{"$f":"VLOOKUP(Q24,AH110:AI122,2)","v":"Meget sjælden. Fleste fund fra Nordøstsjælland."},null,null,null,null,null,null,null,null,null,null,null,null,null,null,null,null,6,"Øjne behårede (undersøg nøje). Ansigt sort- Brystets",null,null,null,null,null,null,null,null,null,null,null,null,null,null,null,null,null,{"$f":"SUM(AR16:BJ16)","v":1},"     Firplettet Svirreflue",null,null,null,null,null,null,null,null,null,null,null,null,null,null,null,null,null,null,null,null,null,null,{"$f":"IF(CA31,\"x\",\" \")","v":" "},null,0]
["Bryst ikke eller kun svagere bestøvet ? ",null,null,null,null,null,null,null,null,null,null,null,null,null," ",null,null,null,"Melangyna HANNER Version 1. Bent Haagen Petersen",null,null,null,null,null,null,null,null,null,null,null,null,null,null,7,"Øjne uden hår. Pande gråt bestøvet. Ansigt gult med",null,null,null,null,null,null,null,null,null,null,null,null,null,null,null,null,null,{"$f":"SUM(AR17:BJ17)","v":0},"      Skærm-Svirreflue"]
[null,null,null,null,null,null,null,null,null,null,null,null,null,null,null,null,null,null,null,null,null,null,null,null,null,null,null,null,null,null,null,null,null,8,"."]
[null,null,null,null,null,null,null,null,null,null,null,null,null,null,null,null,null,null,null,null,null,null,null,null,null,null,null,null,null,null,null,null,null,9,"."]
[null,null,null,null,null,null,null,null,null,null,null,null,null,null,null,null,null,null,null,null,null,null,null,null,null,null,null,null,null,null,null,null,null,10,"."]
[null,null,null,null,null,null,null,null,null,null,null,null,null,null,null,null,null,null,null,null,null,null,null,null,null,null,null,null,null,null,null,null,null,11,"."]
[null,null,null,null,null,null,null,null,null,null,null,null,null,null,null,null,null,null,null,null,null,null,null,null,null,null,null,null,null,null,null,null,null,12,"."]
[null,null,null,null,null,null,null,null,null,null,null,null,null,null,null,null,null,null,null,null,null,null,null,null,null,null,null,null,null,null,null,null,null,13,"."]
[null,null,null,null,null,null,null,null,null,null,null,null,null,null,null,null,null,null,null,null,null,null,null,null,null,null,null,null,null,null,null,null,null,null,null,null,null,null,null,null,null,null,null,null,null,null,null,null,null,null,null,null,{"$f":"SUM(AR19:BJ19)","v":0},null,null,null,null,null,null,null,null,null,null,null,null,null,null,null,null,null,null,null,null,null,null,null,null,null,5]
[null,null,null,null,null,null,null,null,null,null,null,null,null,null,null,null,null,null,null,null,null,null,null,null,null,null,null,null,null,null,null,null,2,1,"overside sorthåret. Scutellum overvejende sorthåret.",null,null,null,null,null,null,null,null,null,null,null,null,null,null,null,null,null,0]
[null,null,null,null,null,null,null,null,null,null,null,null,null,null,null,null,null,null,null,null,null,null,null,null,null,null,null,null,null,null,null,null,null,2,"gråpudret. Ansigt gult med sort midterstribe. Bryst ",null,null,null,null,null,null,null,null,null,null,null,null,null,null,null,null,null,0]
[null,null,null,null,null,null,null,null,null,null,null,null,null,null,null,null,null,null,null,null,null,null,null,null,null,null,null,null,null,null,null,null,null,3,"sort midterstribe. Bryst metalskinnende med lang lys",null,null,null,null,null,null,null,null,null,null,null,null,null,null,null,null,null,0]
[null,null,null,null,null,null,null,null,null,null,null,null,null,null,null,null,null,null,null,null,null,null,null,null,null,null,null,null,null,null,null,null,null,4,"midterstribe. Scutellum gult m. sorte forhjørner og side-",null,null,null,null,null,null,null,null,null,null,null,null,null,null,null,null,null,0]
[null,null,null,null,null,null,null,null,null,null,null,null,null,null,null,null,null,null,null,null,null,null,null,null,null,null,null,null,null,null,null,null,null,5,"tid sort. Kroppen langt lyst behåret. Scutellum oftest",null,null,null,null,null,null,null,null,null,null,null,null,null,null,null,null,null," "]
[null,null,null,null,null,null,null,null,null,null,null,null,null,null,null,null,null,null,null,null,null,null,null,null,null,null,null,null,null,null,null,null,null,6,"overside lyshåret, smalt sorthåret ved siderne. Scutellum"]
[null,null,null,null,null,null,null,null,null,null,null,null,null,null,null,null,null,null,null,null,null,null,null,null,null,null,null,null,null,null,null,null,null,7,"sort midterstribe. Bryst sortskinnende. Scutellum"]
[null,null,null,null,null,null,null,null,null,null,null,null,null,null,null,null,null,null,null,null,null,null,null,null,null,null,null,null,null,null,null,null,null,8,"."]
[null,null,null,null,null,null,null,null,null,null,null,null,null,null,null,null,null,null,null,null,null,null,null,null,null,null,null,null,null,null,null,null,null,9,"."]
[null,null,null,null,null,null,null,null,null,null,null,null,null,null,null,null,null,null,null,null,null,null,null,null,null,null,null,null,null,null,null,null,null,10,"."]
[null,null,null,null,null,null,null,null,null,null,null,null,null,null,null,null,null,null,null,null,null,null,null,null,null,null,null,null,null,null,null,null,null,11,"."]
[null,null,null,null,null,null,null,null,null,null,null,null,null,null,null,null,null,null,null,null,null,null,null,null,null,null,null,null,null,null,null,null,null,12,"."]
[null,null,null,null,null,null,null,null,null,null,null,null,null,null,null,null,null,null,null,null,null,null,null,null,null,null,null,null,null,null,null,null,null,13,"."]
[]
[null,null,null,null,null,null,null,null,null,null,null,null,null,null,null,null,null,null,null,null,null,null,null,null,null,null,null,null,null,null,null,null,3,1,"(belysning snyder let). Panden sort, ubestøvet. Ansig-"]
[null,null,null,null,null,null,null,null,null,null,null,null,null,null,null,null,null,null,null,null,null,null,null,null,null,null,null,null,null,null,null,null,null,2,"tydeligt mat. Scutellum gult med runde sorte pletter"]
[null,null,null,null,null,null,null,null,null,null,null,null,null,null,null,null,null,null,null,null,null,null,null,null,null,null,null,null,null,null,null,null,null,3,"behåring. Scutellum gult, med kileformede sorte side-"]
[null,null,null,null,null,null,null,null,null,null,null,null,null,null,null,null,null,null,null,null,null,null,null,null,null,null,null,null,null,null,null,null,null,4,"kanter. 2. bagkropsled med meget små runde gule plet- "]
[null,null,null,null,null,null,null,null,null,null,null,null,null,null,null,null,null,null,null,null,null,null,null,null,null,null,null,null,null,null,null,null,null,5,"gult, mørkere midt på. 2. bagkropsled helt sort eller  "]
[null,null,null,null,null,null,null,null,null,null,null,null,null,null,null,null,null,null,null,null,null,null,null,null,null,null,null,null,null,null,null,null,null,6,"sort, brunt på midten, langt lyst behåret. 2. bagkropsled"]
[null,null,null,null,null,null,null,null,null,null,null,null,null,null,null,null,null,null,null,null,null,null,null,null,null,null,null,null,null,null,null,null,null,7,"gult med runde sorte pletter i forhjønerne. Bagkroppen"]
[null,null,null,null,null,null,null,null,null,null,null,null,null,null,null,null,null,null,null,null,null,null,null,null,null,null,null,null,null,null,null,null,null,8,"."]
[null,null,null,null,null,null,null,null,null,null,null,null,null,null,null,null,null,null,null,null,null,null,null,null,null,null,null,null,null,null,null,null,null,9,"."]
[null,null,null,null,null,null,null,null,null,null,null,null,null,null,null,null,null,null,null,null,null,null,null,null,null,null,null,null,null,null,null,null,null,10,"."]
[null,null,null,null,null,null,null,null,null,null,null,null,null,null,null,null,null,null,null,null,null,null,null,null,null,null,null,null,null,null,null,null,null,11,"."]
[null,null,null,null,null,null,null,null,null,null,null,null,null,null,null,null,null,null,null,null,null,null,null,null,null,null,null,null,null,null,null,null,null,12,"."]
[null,null,null,null,null,null,null,null,null,null,null,null,null,null,null,null,null,null,null,null,null,null,null,null,null,null,null,null,null,null,null,null,null,13,"."]
[]
[null,null,null,null,null,null,null,null,null,null,null,null,null,null,null,null,null,null,null,null,null,null,null,null,null,null,null,null,null,null,null,null,4,1,"tet sort, siderne let bestøvede. 2. bagkropsled sort."]
[null,null,null,null,null,null,null,null,null,null,null,null,null,null,null,null,null,null,null,null,null,null,null,null,null,null,null,null,null,null,null,null,null,2,"i forhjørnerne. Bagkrop med 3 par gule pletter, 3. og"]
[null,null,null,null,null,null,null,null,null,null,null,null,null,null,null,null,null,null,null,null,null,null,null,null,null,null,null,null,null,null,null,null,null,3,"kanter. Bagkrop med noget ovale gule pletter, på 2. led "]
[null,null,null,null,null,null,null,null,null,null,null,null,null,null,null,null,null,null,null,null,null,null,null,null,null,null,null,null,null,null,null,null,null,4,"ter. 3. og 4. led med smalle sølvpudrede gule pletter,"]
[null,null,null,null,null,null,null,null,null,null,null,null,null,null,null,null,null,null,null,null,null,null,null,null,null,null,null,null,null,null,null,null,null,5,"med meget lille plet. 3. og 4. led med ret små ovale"]
[null,null,null,null,null,null,null,null,null,null,null,null,null,null,null,null,null,null,null,null,null,null,null,null,null,null,null,null,null,null,null,null,null,6,"sort, 3. og 4.led med smalle gule pletter, der spidser"]
[null,null,null,null,null,null,null,null,null,null,null,null,null,null,null,null,null,null,null,null,null,null,null,null,null,null,null,null,null,null,null,null,null,7,"med 3 par hvidgule pletter,  rektangulære på 2. og 3."]
[null,null,null,null,null,null,null,null,null,null,null,null,null,null,null,null,null,null,null,null,null,null,null,null,null,null,null,null,null,null,null,null,null,8,"."]
[null,null,null,null,null,null,null,null,null,null,null,null,null,null,null,null,null,null,null,null,null,null,null,null,null,null,null,null,null,null,null,null,null,9,"."]
[null,null,null,null,null,null,null,null,null,null,null,null,null,null,null,null,null,null,null,null,null,null,null,null,null,null,null,null,null,null,null,null,null,10,"."]
[null,null,null,null,null,null,null,null,null,null,null,null,null,null,null,null,null,null,null,null,null,null,null,null,null,null,null,null,null,null,null,null,null,11,"."]
[null,null,null,null,null,null,null,null,null,null,null,null,null,null,null,null,null,null,null,null,null,null,null,null,null,null,null,null,null,null,null,null,null,12,"."]
[null,null,null,null,null,null,null,null,null,null,null,null,null,null,null,null,null,null,null,null,null,null,null,null,null,null,null,null,null,null,null,null,null,13,"."]
[]
[null,null,null,null,null,null,null,null,null,null,null,null,null,null,null,null,null,null,null,null,null,null,null,null,null,null,null,null,null,null,null,null,5,1,"På 3. og 4. led smalle gule pletter, der spidser til indef-"]
[null,null,null,null,null,null,null,null,null,null,null,null,null,null,null,null,null,null,null,null,null,null,null,null,null,null,null,null,null,null,null,null,null,2,"4. leds rektangulære. Ben sorte og gule. 8-11 mm."]
[null,null,null,null,null,null,null,null,null,null,null,null,null,null,null,null,null,null,null,null,null,null,null,null,null,null,null,null,null,null,null,null,null,3,"aldrig små og runde. Ben overvejende mørke. Skinne-"]
[null,null,null,null,null,null,null,null,null,null,null,null,null,null,null,null,null,null,null,null,null,null,null,null,null,null,null,null,null,null,null,null,null,4,"der tilspidses indad til. Benene er delvis gule. Mel-"]
[null,null,null,null,null,null,null,null,null,null,null,null,null,null,null,null,null,null,null,null,null,null,null,null,null,null,null,null,null,null,null,null,null,5,"eller rektangulære pletter. Ben delvis gule. 7-8 mm."]
[null,null,null,null,null,null,null,null,null,null,null,null,null,null,null,null,null,null,null,null,null,null,null,null,null,null,null,null,null,null,null,null,null,6,"til indefter. Ben sorte, måske lidt brune ved knæene."]
[null,null,null,null,null,null,null,null,null,null,null,null,null,null,null,null,null,null,null,null,null,null,null,null,null,null,null,null,null,null,null,null,null,7,"led. Benene er sorte og gule. 9-10 mm.  Sommerart."]
[null,null,null,null,null,null,null,null,null,null,null,null,null,null,null,null,null,null,null,null,null,null,null,null,null,null,null,null,null,null,null,null,null,8,"."]
[null,null,null,null,null,null,null,null,null,null,null,null,null,null,null,null,null,null,null,null,null,null,null,null,null,null,null,null,null,null,null,null,null,9,"."]
[null,null,null,null,null,null,null,null,null,null,null,null,null,null,null,null,null,null,null,null,null,null,null,null,null,null,null,null,null,null,null,null,null,10,"."]
[null,null,null,null,null,null,null,null,null,null,null,null,null,null,null,null,null,null,null,null,null,null,null,null,null,null,null,null,null,null,null,null,null,11,"."]
[null,null,null,null,null,null,null,null,null,null,null,null,null,null,null,null,null,null,null,null,null,null,null,null,null,null,null,null,null,null,null,null,null,12,"."]
[null,null,null,null,null,null,null,null,null,null,null,null,null,null,null,null,null,null,null,null,null,null,null,null,null,null,null,null,null,null,null,null,null,13,"."]
[]
[null,null,null,null,null,null,null,null,null,null,null,null,null,null,null,null,null,null,null,null,null,null,null,null,null,null,null,null,null,null,null,null,6,1,"ter. Ben sorte, ved knæene ofte gulbrune. 7-8 mm. For-"]
[null,null,null,null,null,null,null,null,null,null,null,null,null,null,null,null,null,null,null,null,null,null,null,null,null,null,null,null,null,null,null,null,null,2,"Sommerart, jun.-aug. Ret sjælden. M. labiatarum reg-"]
[null,null,null,null,null,null,null,null,null,null,null,null,null,null,null,null,null,null,null,null,null,null,null,null,null,null,null,null,null,null,null,null,null,3,"ben gule i inderste halvdel, ofte mere gule. 8-11 mm."]
[null,null,null,null,null,null,null,null,null,null,null,null,null,null,null,null,null,null,null,null,null,null,null,null,null,null,null,null,null,null,null,null,null,4,"lemste skinneben ofte helt gult.  8-10 mm. Forårsart,"]
[null,null,null,null,null,null,null,null,null,null,null,null,null,null,null,null,null,null,null,null,null,null,null,null,null,null,null,null,null,null,null,null,null,5,"Forårsart,  mar.-maj. Nyere art under udbredelse i "]
[null,null,null,null,null,null,null,null,null,null,null,null,null,null,null,null,null,null,null,null,null,null,null,null,null,null," ",null,null,null,null,null,null,6,"6-9 mm.  Forårsart,  mar.- maj. Ret sjælden."]
[null,null,null,null,null,null,null,null,null,null,null,null,null,null,null,null,null,null,null,null,null,null,null,null,null,null,null,null,null,null,null,null,null,7,"Maj-aug. Ret aæmindelig-"]
[null,null,null,null,null,null,null,null,null,null,null,null,null,null,null,null,null,null,null,null,null,null,null,null,null,null,null,null,null,null,null,null,null,8,"."]
[null,null,null,null,null,null,null,null,null,null,null,null,null,null,null,null,null,null,null,null,null,null,null,null,null,null,null,null,null,null,null,null,null,9,"."]
[null,null,null,null,null,null,null,null,null,null,null,null,null,null,null,null,null,null,null,null,null,null,null,null,null,null,null,null,null,null,null,null,null,10,"."]
[null,null,null,null,null,null,null,null,null,null,null,null,null,null,null,null,null,null,null,null,null,null,null,null,null,null,null,null,null,null,null,null,null,11,"."]
[null,null,null,null,null,null,null,null,null,null,null,null,null,null,null,null,null,null,null,null,null,null,null,null,null,null,null,null,null,null,null,null,null,12,"."]
[null,null,null,null,null,null,null,null,null,null,null,null,null,null,null,null,null,null,null,null,null,null,null,null,null,null,null,null,null,null,null,null,null,13,"."]
[]
[null,null,null,null,null,null,null,null,null,null,null,null,null,null,null,null,null,null,null,null,null,null,null,null,null,null,null,null,null,null,null,null,7,1,"årsart,  mar.-maj. Sj- på Øerne, hyppigere i Jylland."]
[null,null,null,null,null,null,null,null,null,null,null,null,null,null,null,null,null,null,null,null,null,null,null,null,null,null,null,null,null,null,null,null,null,2,"nes for en variant m. bl. a. større, firkantede pletter."]
[null,null,null,null,null,null,null,null,null,null,null,null,null,null,null,null,null,null,null,null,null,null,null,null,null,null,null,null,null,null,null,null,null,3,"Forårsart, mar.-maj. Ret almindelig."]
[null,null,null,null,null,null,null,null,null,null,null,null,null,null,null,null,null,null,null,null,null,null,null,null,null,null,null,null,null,null,null,null,null,4," mar.-apr. Meget sjælden."]
[null,null,null,null,null,null,null,null,null,null,null,null,null,null,null,null,null,null,null,null,null,null,null,null,null,null,null,null,null,null,null,null,null,5,"Meget sjælden. Fleste fund fra Nordøstsjælland."]
[null,null,null,null,null,null,null,null,null,null,null,null,null,null,null,null,null,null,null,null,null,null,null,null,null,null,null,null,null,null,null,null,null,6,"."]
[null,null,null,null,null,null,null,null,null,null,null,null,null,null,null,null,null,null,null,null,null,null,null,null,null,null,null,null,null,null,null,null,null,7,"."]
[null,null,null,null,null,null,null,null,null,null,null,null,null,null,null,null,null,null,null,null,null,null,null,null,null,null,null,null,null,null,null,null,null,8,"."]
[null,null,null,null,null,null,null,null,null,null,null,null,null,null,null,null,null,null,null,null,null,null,null,null,null,null,null,null,null,null,null,null,null,9,"."]
[null,null,null,null,null,null,null,null,null,null,null,null,null,null,null,null,null,null,null,null,null,null,null,null,null,null,null,null,null,null,null,null,null,10,"."]
[null,null,null,null,null,null,null,null,null,null,null,null,null,null,null,null,null,null,null,null,null,null,null,null,null,null,null,null,null,null,null,null,null,11,"."]
[null,null,null,null,null,null,null,null,null,null,null,null,null,null,null,null,null,null,null,null,null,null,null,null,null,null,null,null,null,null,null,null,null,12,"."]
[null,null,null,null,null,null,null,null,null,null,null,null,null,null,null,null,null,null,null,null,null,null,null,null,null,null,null,null,null,null,null,null,null,13]
[null,null,null,null,null,null,null,null,null,null,null,null,null,null,null,null,null,null,null,null,null,null,null,null,null,null,null,null,null,null,null,null,null,null,"."]

{"sheet":"Ark2","index":1,"n_rows":0,"n_cols":0,"rows_kept":0,"cut":false,"hidden":false,"merged":[]}

{"sheet":"Ark3","index":2,"n_rows":0,"n_cols":0,"rows_kept":0,"cut":false,"hidden":false,"merged":[]}

{"sheet":"Ark4","index":3,"n_rows":0,"n_cols":0,"rows_kept":0,"cut":false,"hidden":false,"merged":[]}

{"sheet":"Ark5","index":4,"n_rows":0,"n_cols":0,"rows_kept":0,"cut":false,"hidden":false,"merged":[]}

{"sheet":"Ark6","index":5,"n_rows":0,"n_cols":0,"rows_kept":0,"cut":false,"hidden":false,"merged":[]}